[Event "9th Sharjah Cup Women 2018"]
[Site "Sharjah"]
[Date "2018.12.17"]
[Round "5"]
[White "Samaganova, Alexandra"]
[Black "Fatima, Saif Al-Ali"]
[Result "1-0"]
[ECO "D53"]
[WhiteElo "2038"]
[BlackElo "1200"]
[Annotator "NA"]
[PlyCount "70"]
[EventDate "2018.12.14"]
[EventType "swiss"]
[EventCountry "UAE"]
[SourceTitle "playchess.com"]
[Source "ChessBase"]
[SourceQuality "1"]
[TimeControl "5400+30"]

1. c4 {[%emt 0:00:00]} e6 {[%emt 0:00:00]} 2. Nc3 {[%emt 0:00:00]} d5 {[%emt 0:00:47]} 3. d4 {[%emt 0:00:23]} Nf6 {[%emt 0:01:16]} 4. Bg5 {[%emt 0:00:39]} Be7 {[%emt 0:00:22]} 5. cxd5 {[%emt 0:00:29]} exd5 {[%emt 0:00:20]} 6. e3 {[%emt 0:00:24]} h6 {[%emt 0:00:16]} 7. Bh4 {[%emt 0:02:56]} O-O {[%emt 0:00:18]} 8. Bd3 {[%emt 0:01:05]} b6 {[%emt 0:02:32]} 9. Nf3 {[%emt 0:03:33]} Bb7 {[%emt 0:02:50]} 10. Qc2 {[%emt 0:07:32]} c5 {[%emt 0:02:56]} 11. O-O {[%emt 0:08:53] D58: Queen's Gambit Declined: Tartakower Defence} Nc6 {[%emt 0:08:58]} 12. a3 {[%emt 0:07:08] LiveBook: 4 Games} Rc8 {[%emt 0:09:13]} (12... a6 13. dxc5 bxc5 14. Rfd1 d4 15. Bxf6 Bxf6 16. Ne4 dxe3 17. Nxc5 exf2+ 18. Kf1 Qb8 {1-0 (51) Ivanchuk,V (2781)-Karpov,A (2651) Moscow 2008}) 13. Bf5 {[%emt 0:04:47]} Rb8 $146 {[%emt 0:02:51]} ({Predecessor:} 13... Ra8 14. Rfd1 c4 15. Ne5 g5 16. Bg3 Nxe5 17. dxe5 Nh5 18. e6 Ng7 {1-0 (74) Martinez Tafalla,M-Ceron Carrion,C Lorca 2003}) 14. dxc5 {[%emt 0:11:05]} bxc5 {[%emt 0:03:18]} 15. Rfd1 {[%emt 0:01:10]} Qb6 {[%emt 0:07:54]} 16. Na4 {[%emt 0:13:10]} ({But not} 16. Nxd5 $2 Nxd5 17. Rxd5 Bxh4 $19) 16... Qc7 {[%emt 0:18:22]} 17. Bg3 {[%emt 0:05:42]} Bd6 {[%emt 0:03:34]} 18. Bxd6 {[%emt 0:01:06]} Qxd6 {[%emt 0:00:16]} 19. Nxc5 {[%emt 0:01:11]} Ne7 {[%emt 0:01:02]} 20. Nxb7 {[%emt 0:03:11]} Rxb7 {[%emt 0:00:14]} 21. Nd4 {[%emt 0:01:28]} Rfb8 {[%emt 0:06:47]} 22. b4 {[%emt 0:02:24]} a5 $18 {[%emt 0:03:28]} (22... Rc7 $16 23. Qd3 Rc4) 23. b5 {[%emt 0:02:19]} Rc7 {[%emt 0:03:25]} 24. Qd2 {[%emt 0:04:34]} Nxf5 {[%emt 0:02:17]} 25. Nxf5 {[%emt 0:00:06]} Qe5 {[%emt 0:00:15]} 26. Nd4 {[%emt 0:00:25]} Ng4 {[%emt 0:00:47]} 27. Nf3 {[%emt 0:07:16]} Qe8 {[%emt 0:00:42]} 28. a4 {[%emt 0:01:17]} Nf6 {[%emt 0:01:20]} 29. Qxa5 {[%emt 0:00:33]} Rcc8 {[%emt 0:00:26]} 30. Nd4 {[%emt 0:00:41]} Rc5 {[%emt 0:01:17]} 31. h3 {[%emt 0:01:01]} Ne4 {[%emt 0:00:53]} 32. Qe1 {[%emt 0:01:40]} Qc8 {[%emt 0:00:34]} 33. Nc6 {[%emt 0:01:42]} Ra8 {[%emt 0:00:31]} 34. Ne7+ {[%emt 0:00:10]} Kh8 {[%emt 0:00:07]} 35. Nxc8 {[%emt 0:00:04]} Raxc8 {[%emt 0:00:06]} 1-0

[Event "9th Sharjah Cup Women 2018"]
[Site "Sharjah"]
[Date "2018.12.17"]
[Round "5"]
[White "Alattar, Ghayda M."]
[Black "Khalil, Reem"]
[Result "1-0"]
[ECO "B07"]
[WhiteElo "1944"]
[BlackElo "1297"]
[Annotator "NA"]
[PlyCount "43"]
[EventDate "2018.12.14"]
[EventType "swiss"]
[EventCountry "UAE"]
[SourceTitle "playchess.com"]
[Source "ChessBase"]
[SourceQuality "1"]
[TimeControl "5400+30"]

{[%evp 21,43,77,56,31,115,79,129,114,131,157,32767,32767,113,32767,76,63,221,285,32767,32767,32767,32767,755,811]} 1. e4 {[%emt 0:00:00]} d6 {[%emt 0:00:00]} 2. d4 {[%emt 0:00:00]} Nf6 {[%emt 0:00:00]} 3. Nc3 {[%emt 0:00:00]} Nbd7 {[%emt 0:00:00]} 4. g4 {[%emt 0:03:53]} h6 {[%emt 0:00:07] B07: Pirc Defence: Miscellaneous Systems} 5. h3 {[%emt 0:00:59]} e5 {[%emt 0:00:26]} 6. Be3 {[%emt 0:01:31]} Be7 {[%emt 0:00:34]} 7. Nge2 {[%emt 0:00:20]} c6 {[%emt 0:00:14]} 8. Ng3 {[%emt 0:01:19]} exd4 {[%emt 0:00:58]} 9. Bxd4 $146 {[%emt 0:02:48]} ({Predecessor:} 9. Qxd4 Ne5 10. Be2 g5 11. O-O-O Be6 12. Nf5 Bxf5 13. exf5 {1-0 (39) Nijboer,F (2598)-Plukkel,S (2148) Vlissingen 2006}) 9... Ne5 {[%emt 0:00:18]} 10. f4 {[%emt 0:11:25]} Ng6 {[%emt 0:02:48]} 11. Qd2 {[%emt 0:03:11]} b5 {[%emt 0:03:21]} 12. Rg1 {[%emt 0:14:11]} (12. O-O-O $16) 12... Qc7 {[%emt 0:06:38]} (12... b4 $11 13. Nce2 O-O) 13. Bg2 {[%emt 0:04:50]} Rb8 {[%emt 0:08:09]} 14. Nf5 {[%emt 0:04:27]} Bxf5 {[%emt 0:04:53]} 15. exf5 {[%emt 0:01:26]} Nh4 {[%emt 0:03:02]} 16. Bh1 {[%emt 0:01:28]} b4 {[%emt 0:07:39]} 17. Ne4 {[%emt 0:06:34]} Nxe4 $1 {[%emt 0:05:59]} 18. Bxe4 {[%emt 0:00:01]} Rg8 $2 {[%emt 0:08:16]} (18... d5 $1 $14 19. Bh1 O-O) 19. O-O-O {[%emt 0:02:23]} g5 {[%emt 0:09:40]} 20. f6 {[%emt 0:06:05]} Bd8 {[%emt 0:00:48]} 21. Rge1 {[%emt 0:02:09]} Kd7 $18 {[%emt 0:08:08]} 22. Be5 {[%emt 0:00:27]} 1-0

[Event "9th Sharjah Cup Women 2018"]
[Site "Sharjah"]
[Date "2018.12.17"]
[Round "5"]
[White "Aisha Mohamed Al Muaini"]
[Black "Greibrokk, Ingrid"]
[Result "0-1"]
[ECO "B50"]
[WhiteElo "1134"]
[BlackElo "1857"]
[Annotator "NA RC"]
[PlyCount "100"]
[EventDate "2018.12.14"]
[EventType "swiss"]
[EventCountry "UAE"]
[SourceTitle "playchess.com"]
[Source "ChessBase"]
[SourceQuality "1"]
[TimeControl "5400+30"]

1. e4 {[%emt 0:00:00]} c5 {[%emt 0:00:00]} 2. Nf3 {[%emt 0:00:00]} d6 {[%emt 0:00:00]} 3. d3 {[%emt 0:00:00]} Nc6 {[%emt 0:00:00]} 4. g3 {[%emt 0:00:00]} g6 {[%emt 0:00:00]} 5. Bg2 {[%emt 0:00:00]} Bg7 {[%emt 0:00:00]} 6. O-O {[%emt 0:00:03]} Nf6 {[%emt 0:00:58]} 7. c3 {[%emt 0:00:22]} O-O {[%emt 0:00:09]} 8. Nbd2 {[%emt 0:00:07]} b5 {[%emt 0:01:58] A05: Réti Opening: 1 Nf3 Nf6} (8... e5 9. a4 h6 10. Nc4 Be6 11. Qe2 Qc7 12. Nfd2 Rad8 13. a5 d5 14. exd5 Nxd5 15. Ne4 b6 16. axb6 axb6 17. Re1 Qd7 18. Na3 Bg4 19. Qc2 {½-½ (50) Amin,B (2652)-Robson,R (2613) Antalya 2013}) 9. h3 {[%emt 0:03:36]} Rb8 {[%emt 0:02:30]} 10. Nh4 $146 {[%emt 0:01:29]} ({Predecessor:} 10. d4 cxd4 11. cxd4 Nd7 12. Nb3 a5 13. d5 Nce5 14. Nxe5 Nxe5 15. Re1 Nc4 16. Nd4 Bd7 {1-0 (75) Gabr,M (2287)-Koehn,L (2087) Pardubice 2018}) 10... b4 {[%emt 0:00:52]} 11. c4 {[%emt 0:00:32]} e6 {[%emt 0:09:45]} 12. f4 {[%emt 0:00:59]} Nh5 {[%emt 0:00:25]} 13. Kh2 {[%emt 0:00:59]} Bb7 {[%emt 0:04:02]} 14. f5 $2 {[%emt 0:04:34] [#]} ({White should try} 14. Nb3 $15) 14... exf5 $2 {[%emt 0:01:35] [#]} ({Better is} 14... Nxg3 $1 $19 {[%mdl 512]} 15. Kxg3 Be5+ 16. Kf2 Qxh4+ 17. Kg1 Nd4) 15. exf5 $2 {[%emt 0:00:24] [#]} (15. Nxf5 $1 $15 {[%mdl 512]} Be5 (15... gxf5 16. Qxh5) 16. Nf3) 15... Be5 {[%emt 0:00:20]} (15... Nxg3 $142 $1 {[%mdl 512]} 16. Rf3 (16. Kxg3 Be5+) 16... Nh5) 16. Ne4 {[%emt 0:02:14]} Nxg3 {[%emt 0:01:36]} 17. Nxg3 {[%emt 0:01:45]} Qxh4 {[%emt 0:00:06]} 18. Qe1 $2 {[%emt 0:02:14]} (18. Qg4 Qxg4 19. hxg4) 18... Nd4 {[%emt 0:00:14]} 19. Qf2 {[%emt 0:01:04] [#]} Nxf5 $2 {[%emt 0:01:16]} (19... Ne2 $1 {[%mdl 512]} 20. Bxb7 (20. Qxe2 Qxg3+) 20... Bxg3+ 21. Kg2 Bxf2 22. Rxf2 Qg3+ {[%mdl 64] Double Attack} 23. Kf1 Qxd3) 20. Bf4 {[%emt 0:01:18]} Nxg3 {[%emt 0:00:56]} 21. Qxg3 {[%emt 0:00:49]} Bxf4 {[%emt 0:01:23]} 22. Rxf4 {[%emt 0:00:35]} Qxg3+ {[%emt 0:00:04]} 23. Kxg3 {[%emt 0:00:12]} Bxg2 {[%emt 0:00:03]} 24. Kxg2 {[%emt 0:00:10]} f5 {[%emt 0:00:20]} 25. Re1 {[%emt 0:00:24]} Rfe8 {[%emt 0:00:11]} 26. Rff1 {[%emt 0:00:19]} Rxe1 {[%emt 0:00:26]} 27. Rxe1 {[%emt 0:00:06]} Kf7 {[%emt 0:00:03]} 28. Kf3 {[%emt 0:00:28]} Re8 {[%emt 0:00:20]} 29. Rxe8 {[%emt 0:00:10]} Kxe8 {[%emt 0:00:05]} 30. Kf4 {[%emt 0:00:12]} h6 {[%emt 0:00:06]} 31. h4 {[%emt 0:00:11]} Ke7 {[%emt 0:00:08]} 32. Kg3 {[%emt 0:00:29]} g5 {[%emt 0:00:07]} 33. hxg5 {[%emt 0:00:24]} hxg5 {[%emt 0:00:05]} 34. Kf3 {[%emt 0:00:06]} Ke6 {[%emt 0:00:18]} 35. Ke3 {[%emt 0:00:15]} f4+ {[%emt 0:00:20]} 36. Kf3 {[%emt 0:00:06]} Ke5 {[%emt 0:00:09]} 37. Ke2 {[%emt 0:00:17]} g4 {[%emt 0:00:11]} 38. Kf2 {[%emt 0:00:10]} Kd4 {[%emt 0:00:07]} 39. Ke2 {[%emt 0:00:12]} f3+ {[%emt 0:00:10]} 40. Kf2 {[%emt 0:00:15]} Kxd3 {[%emt 0:00:07]} 41. Kg3 {[%emt 0:00:08]} Ke2 {[%emt 0:00:07]} 42. Kxg4 {[%emt 0:00:07]} f2 {[%emt 0:00:06]} 43. Kg3 {[%emt 0:00:05]} f1=Q {[%emt 0:00:08]} 44. Kg4 {[%emt 0:00:19]} Ke3 {[%emt 0:00:19]} 45. Kg5 {[%emt 0:00:08]} Ke4 {[%emt 0:00:11]} 46. Kg6 {[%emt 0:00:08]} Ke5 {[%emt 0:00:11]} 47. Kg7 {[%emt 0:00:08]} Qf6+ {[%emt 0:00:15]} 48. Kg8 {[%emt 0:00:08]} Ke6 {[%emt 0:00:24]} 49. Kh7 {[%emt 0:00:07]} Kf7 {[%emt 0:00:09]} 50. b3 {[%emt 0:00:05]} Qg7# 0-1

[Event "9th Sharjah Cup Women 2018"]
[Site "Sharjah"]
[Date "2018.12.17"]
[Round "6"]
[White "Mkrtchian, Lilit"]
[Black "Gu, Xiaobing"]
[Result "1/2-1/2"]
[ECO "E97"]
[WhiteElo "2392"]
[BlackElo "2295"]
[Annotator "ChessBase"]
[PlyCount "62"]
[EventDate "2018.12.14"]
[EventType "swiss"]
[EventCountry "UAE"]
[SourceTitle "playchess.com"]
[Source "ChessBase"]
[SourceQuality "1"]
[TimeControl "5400+30"]

1. d4 {[%emt 0:00:00]} Nf6 {[%emt 0:00:00]} 2. c4 {[%emt 0:00:06]} g6 {[%emt 0:00:01]} 3. Nc3 {[%emt 0:00:35]} Bg7 {[%emt 0:00:18]} 4. e4 {[%emt 0:00:22]} d6 {[%emt 0:01:00]} 5. Be2 {[%emt 0:01:04]} O-O {[%emt 0:00:47]} 6. Nf3 {[%emt 0:01:08]} e5 {[%emt 0:00:42]} 7. O-O {[%emt 0:00:49]} Nc6 {[%emt 0:01:26]} 8. d5 {[%emt 0:00:55]} Ne7 {[%emt 0:00:05]} 9. b4 {[%emt 0:00:47]} Nh5 {[%emt 0:02:05]} 10. Re1 {[%emt 0:02:00]} f5 {[%emt 0:00:18]} 11. Ng5 {[%emt 0:00:49]} Nf6 {[%emt 0:00:15]} 12. Bf3 {[%emt 0:00:34]} c6 {[%emt 0:01:29]} 13. b5 {[%emt 0:01:23]} h6 {[%emt 0:04:10]} 14. Ne6 {[%emt 0:01:19]} Bxe6 {[%emt 0:00:07]} 15. dxe6 {[%emt 0:00:05]} fxe4 {[%emt 0:00:32]} 16. Nxe4 {[%emt 0:00:53]} Nxe4 {[%emt 0:03:54]} 17. Bxe4 {[%emt 0:00:21]} d5 {[%emt 0:01:37]} 18. cxd5 {[%emt 0:03:02]} cxd5 {[%emt 0:00:10]} 19. Ba3 {[%emt 0:00:32]} dxe4 {[%emt 0:00:25]} 20. Qxd8 {[%emt 0:01:00]} Rfxd8 {[%emt 0:00:05]} 21. Bxe7 {[%emt 0:00:11]} Re8 {[%emt 0:00:09]} 22. Bc5 {[%emt 0:01:14]} Rxe6 {[%emt 0:00:12]} 23. Rxe4 {[%emt 0:00:19]} a6 {[%emt 0:01:00]} 24. bxa6 {[%emt 0:00:45]} Rexa6 {[%emt 0:00:06]} 25. a3 {[%emt 0:00:36]} Bf8 {[%emt 0:01:17]} 26. Bxf8 {[%emt 0:00:29]} Kxf8 {[%emt 0:00:06]} 27. Rxe5 {[%emt 0:00:10]} Rxa3 {[%emt 0:00:09]} 28. Rxa3 {[%emt 0:00:15]} Rxa3 {[%emt 0:00:06]} 29. h4 {[%emt 0:00:09]} Rb3 {[%emt 0:00:12]} 30. h5 {[%emt 0:00:10]} Kf7 {[%emt 0:00:11]} 31. hxg6+ {[%emt 0:00:06]} Kxg6 {[%emt 0:00:05]} 1/2-1/2

[Event "9th Sharjah Cup Women 2018"]
[Site "Sharjah"]
[Date "2018.12.17"]
[Round "6"]
[White "Khukhashvili, Sopiko"]
[Black "Drljevic, Ljilja"]
[Result "1-0"]
[ECO "B06"]
[WhiteElo "2338"]
[BlackElo "2208"]
[Annotator "NA"]
[PlyCount "80"]
[EventDate "2018.12.14"]
[EventType "swiss"]
[EventCountry "UAE"]
[SourceTitle "playchess.com"]
[Source "ChessBase"]
[SourceQuality "1"]
[TimeControl "5400+30"]

1. e4 {[%emt 0:00:00]} g6 {[%emt 0:00:00]} 2. d4 {[%emt 0:00:00]} Bg7 {[%emt 0:00:00]} 3. Be3 {[%emt 0:00:00]} d6 {[%emt 0:00:00]} 4. Nc3 {[%emt 0:00:00]} a6 {[%emt 0:00:40]} 5. Qd2 {[%emt 0:00:11]} b5 {[%emt 0:00:46]} 6. f3 {[%emt 0:00:09]} Nd7 {[%emt 0:00:34]} 7. h4 {[%emt 0:00:04]} h6 {[%emt 0:00:13] B06: Modern Defence} (7... h5 8. Nh3 Bb7 9. Ng5 e6 10. O-O-O Qe7 11. Ne2 Ngf6 12. Nf4 e5 13. dxe5 Nxe5 14. Kb1 Rb8 15. Be2 O-O 16. Ba7 Rbd8 {1-0 (37) Sjugirov,S (2654)-Chigaev,M (2599) Sochi 2018}) 8. O-O-O {[%emt 0:03:41]} Bb7 {[%emt 0:00:37]} 9. d5 {[%emt 0:01:36]} c5 {[%emt 0:02:58] LiveBook: 3 Games} (9... h5 $11) 10. dxc6 $1 {[%emt 0:00:54]} Bxc6 {[%emt 0:00:03]} 11. Nd5 $146 {[%emt 0:00:30]} ({Predecessor:} 11. Bd4 Bxd4 12. Qxd4 Ngf6 13. g4 Qb6 14. Nge2 Rc8 15. a3 Bb7 {½-½ (15) Gulbas,C (2377)-Yilmazyerli,M (2450) Kocaeli 2015}) 11... Ngf6 {[%emt 0:04:42]} 12. Nxf6+ {[%emt 0:02:15]} Nxf6 {[%emt 0:00:15]} 13. Ne2 {[%emt 0:00:17]} Qc7 {[%emt 0:06:27]} 14. Nd4 {[%emt 0:00:55]} Bb7 {[%emt 0:01:31]} 15. Nb3 {[%emt 0:09:57]} Rc8 {[%emt 0:04:41]} 16. Bd3 {[%emt 0:03:03]} Nd7 {[%emt 0:09:11]} 17. Kb1 {[%emt 0:06:48]} e6 {[%emt 0:09:45]} (17... h5 $11) 18. Rhe1 {[%emt 0:04:59]} Nc5 {[%emt 0:14:34]} 19. Nxc5 {[%emt 0:10:09]} dxc5 {[%emt 0:00:04]} 20. c4 $16 {[%emt 0:00:07]} Ke7 {[%emt 0:07:19]} 21. Bf4 {[%emt 0:06:19]} e5 {[%emt 0:05:56]} 22. Be3 {[%emt 0:00:12]} Rhd8 {[%emt 0:00:26]} 23. Qc1 {[%emt 0:00:32]} Qa5 {[%emt 0:02:51]} 24. Bd2 {[%emt 0:02:01]} b4 {[%emt 0:00:40]} 25. Bc2 {[%emt 0:01:53]} h5 {[%emt 0:17:46]} 26. Bg5+ {[%emt 0:01:58]} f6 {[%emt 0:00:08]} 27. Bh6 {[%emt 0:00:40]} Bh8 {[%emt 0:04:28]} 28. Be3 {[%emt 0:00:33]} Qb6 {[%emt 0:00:59]} 29. g4 {[%emt 0:00:39]} Bc6 {[%emt 0:01:54]} 30. gxh5 {[%emt 0:02:12]} gxh5 {[%emt 0:00:02]} 31. f4 {[%emt 0:00:32]} a5 {[%emt 0:04:32]} 32. fxe5 {[%emt 0:00:53]} a4 {[%emt 0:00:35]} 33. exf6+ {[%emt 0:00:52]} Ke6 {[%emt 0:00:20]} 34. Bd3 {[%emt 0:02:01]} Bxf6 {[%emt 0:01:22]} 35. Bg5 {[%emt 0:00:20]} Rf8 {[%emt 0:00:34]} 36. e5 {[%emt 0:00:29]} Bg7 {[%emt 0:00:35]} 37. Bg6 {[%emt 0:00:10]} Rcd8 {[%emt 0:00:27]} 38. Bxd8 {[%emt 0:00:58]} Rxd8 {[%emt 0:00:01]} 39. Rd6+ {[%emt 0:00:53]} Rxd6 {[%emt 0:00:55]} 40. exd6+ {[%emt 0:00:02]} Kxd6 1-0

[Event "9th Sharjah Cup Women 2018"]
[Site "Sharjah"]
[Date "2018.12.17"]
[Round "6"]
[White "Gevorgyan, Irina"]
[Black "Mezioud, Amina"]
[Result "1/2-1/2"]
[ECO "A04"]
[WhiteElo "2301"]
[BlackElo "2065"]
[Annotator "NA"]
[PlyCount "88"]
[EventDate "2018.12.14"]
[EventType "swiss"]
[EventCountry "UAE"]
[SourceTitle "playchess.com"]
[Source "ChessBase"]
[SourceQuality "1"]
[TimeControl "5400+30"]

1. Nf3 {[%emt 0:00:00]} Nc6 {[%emt 0:00:12]} 2. d4 {[%emt 0:00:08]} d5 {[%emt 0:00:04]} 3. Bf4 {[%emt 0:00:51]} e6 {[%emt 0:00:39]} 4. e3 {[%emt 0:01:05]} Bd6 {[%emt 0:03:08] LiveBook: 13 Games} 5. Bd3 {[%emt 0:03:28] D02: 1 d4 d5 2 Nf3 sidelines, including 2...Nf6 3 g3 and 2...Nf6 3 Bf4} (5. Bg3 Nge7 6. Bd3 Nb4 7. Bb5+ Bd7 8. Be2 Nf5 9. Bxd6 cxd6 10. O-O O-O 11. b3 Rc8 12. c4 dxc4 13. bxc4 {1-0 (43) Salinas Herrera,P (2470)-Rodriguez Vila,A (2487) Buenos Aires 2018}) 5... Nge7 {[%emt 0:06:20]} 6. c3 {[%emt 0:01:57]} Ng6 {[%emt 0:00:40]} 7. Bg3 {[%emt 0:00:09]} Nce7 {[%emt 0:01:26]} 8. Nbd2 {[%emt 0:01:28]} Nf5 $146 {[%emt 0:02:42]} ({Predecessor:} 8... h5 9. Qc2 h4 10. Be5 Bxe5 11. Nxe5 Nxe5 12. dxe5 {½-½ (37) Massekhin,M-Hoeschele,H (2174) Ditzingen 2009}) 9. Bxf5 {[%emt 0:28:15]} exf5 {[%emt 0:00:18]} 10. Bxd6 {[%emt 0:00:25]} Qxd6 {[%emt 0:00:08]} 11. O-O {[%emt 0:00:50]} O-O {[%emt 0:00:26]} 12. Qb3 {[%emt 0:04:19]} Be6 {[%emt 0:05:04]} 13. Qb4 {[%emt 0:12:54]} Qxb4 {[%emt 0:09:59]} 14. cxb4 {[%emt 0:00:07]} f4 {[%emt 0:00:26]} 15. Rac1 {[%emt 0:04:48]} c6 {[%emt 0:00:07]} 16. Nb3 {[%emt 0:00:08]} Bg4 {[%emt 0:01:35]} 17. Nfd2 {[%emt 0:01:07]} Rfe8 {[%emt 0:02:10]} 18. Rfe1 {[%emt 0:00:27]} fxe3 {[%emt 0:00:21]} 19. fxe3 {[%emt 0:00:41]} Re7 {[%emt 0:01:12]} 20. Kf2 {[%emt 0:01:17]} Rae8 $11 {[%emt 0:00:54]} 21. a4 {[%emt 0:03:21]} Bc8 {[%emt 0:05:33]} 22. Rc3 {[%emt 0:04:56]} Nh4 {[%emt 0:01:06]} 23. b5 {[%emt 0:04:22]} cxb5 {[%emt 0:05:18]} 24. axb5 {[%emt 0:00:13]} b6 {[%emt 0:01:37]} 25. e4 {[%emt 0:02:04]} Bd7 {[%emt 0:06:29]} 26. Rce3 {[%emt 0:05:21]} Bxb5 {[%emt 0:00:54]} 27. g3 {[%emt 0:00:16]} Ng6 {[%emt 0:00:12]} 28. exd5 {[%emt 0:00:27]} Rxe3 {[%emt 0:00:18]} 29. Rxe3 {[%emt 0:00:07]} Rd8 {[%emt 0:00:44]} 30. Rc3 {[%emt 0:03:32]} Rxd5 {[%emt 0:02:06]} 31. Rc7 {[%emt 0:01:05]} a5 {[%emt 0:02:21]} 32. Rc8+ {[%emt 0:00:53]} Nf8 {[%emt 0:00:03]} 33. Nf3 {[%emt 0:00:12]} f6 {[%emt 0:01:04]} 34. Rb8 {[%emt 0:00:34]} a4 {[%emt 0:01:13]} 35. Nbd2 {[%emt 0:01:36]} Rd6 {[%emt 0:01:09]} 36. Ne4 {[%emt 0:02:02]} Re6 {[%emt 0:02:41]} 37. Nc3 {[%emt 0:00:09]} Bd7 {[%emt 0:00:05]} 38. d5 {[%emt 0:00:15]} Rd6 {[%emt 0:00:32]} 39. Nd2 {[%emt 0:01:05]} f5 {[%emt 0:02:52]} 40. Nc4 {[%emt 0:00:09]} Rh6 {[%emt 0:01:03]} 41. Ne5 {[%emt 0:05:31]} Rd6 {[%emt 0:00:06]} 42. Nxd7 {[%emt 0:01:24]} Rxd7 {[%emt 0:00:05]} 43. Rxb6 {[%emt 0:00:05]} Ra7 {[%emt 0:00:32]} 44. Nb5 {[%emt 0:01:08]} Nd7 {[%emt 0:04:14]} 1/2-1/2

[Event "9th Sharjah Cup Women 2018"]
[Site "Sharjah"]
[Date "2018.12.17"]
[Round "6"]
[White "Zozulia, Anna"]
[Black "Al Ali, Aisha Saif"]
[Result "1-0"]
[ECO "B40"]
[WhiteElo "2270"]
[BlackElo "1401"]
[Annotator "NA"]
[PlyCount "81"]
[EventDate "2018.12.14"]
[EventType "swiss"]
[EventCountry "UAE"]
[SourceTitle "playchess.com"]
[Source "ChessBase"]
[SourceQuality "1"]
[TimeControl "5400+30"]

1. e4 {[%emt 0:00:00]} c5 {[%emt 0:00:00]} 2. Nf3 {[%emt 0:00:00]} e6 {[%emt 0:00:35]} 3. d4 {[%emt 0:00:00]} cxd4 {[%emt 0:00:11]} 4. Nxd4 {[%emt 0:00:04]} Nf6 {[%emt 0:00:25]} 5. Bd3 {[%emt 0:00:18]} Nc6 {[%emt 0:01:27]} 6. Nxc6 {[%emt 0:13:46]} dxc6 {[%emt 0:02:41]} 7. Nd2 {[%emt 0:03:20]} e5 {[%emt 0:01:42]} 8. Nc4 {[%emt 0:00:53] LiveBook: 11 Games} Qc7 {[%emt 0:01:32]} 9. O-O {[%emt 0:02:33]} b5 {[%emt 0:10:38]} 10. Ne3 {[%emt 0:01:14]} Bd6 {[%emt 0:05:19]} 11. a4 {[%emt 0:00:35]} Bd7 {[%emt 0:00:39]} 12. Qf3 {[%emt 0:06:10]} O-O {[%emt 0:05:36]} 13. Nf5 {[%emt 0:08:21]} Bxf5 $14 {[%emt 0:06:14]} 14. Qxf5 {[%emt 0:00:59]} a6 {[%emt 0:00:22]} 15. Be3 {[%emt 0:05:35]} Qd7 {[%emt 0:01:31]} 16. Qxd7 {[%emt 0:15:49]} Nxd7 {[%emt 0:01:33]} 17. Rfd1 {[%emt 0:00:03]} Nc5 {[%emt 0:10:46]} 18. Bxb5 {[%emt 0:04:29]} cxb5 {[%emt 0:01:24]} 19. Rxd6 {[%emt 0:00:08]} Nxe4 {[%emt 0:00:20]} 20. Rd5 {[%emt 0:00:16]} bxa4 {[%emt 0:27:10]} 21. Rxa4 {[%emt 0:04:41]} Nf6 {[%emt 0:05:09]} 22. Rxe5 {[%emt 0:00:30]} Rfd8 {[%emt 0:01:02]} 23. f3 {[%emt 0:04:24]} Nd5 {[%emt 0:05:08]} 24. Rd4 {[%emt 0:03:11]} Nxe3 {[%emt 0:02:50]} 25. Rxd8+ {[%emt 0:00:03]} Rxd8 {[%emt 0:00:11]} 26. Rxe3 {[%emt 0:00:03]} Kf8 {[%emt 0:00:22]} 27. Kf2 {[%emt 0:01:17]} Rd6 {[%emt 0:02:39]} 28. Re2 {[%emt 0:05:39]} f6 {[%emt 0:02:38]} 29. Ke1 {[%emt 0:01:05]} Kf7 {[%emt 0:00:19]} 30. Rd2 {[%emt 0:00:09]} Re6+ {[%emt 0:00:29]} 31. Kd1 {[%emt 0:00:11]} Ke7 {[%emt 0:00:08]} 32. Re2 {[%emt 0:00:07]} Rxe2 {[%emt 0:00:24]} 33. Kxe2 {[%emt 0:00:04]} Kd6 {[%emt 0:00:11]} 34. b4 {[%emt 0:00:31]} Kc6 {[%emt 0:00:28]} 35. c4 {[%emt 0:00:25]} Kb6 {[%emt 0:00:19]} 36. Kd3 {[%emt 0:00:04]} a5 {[%emt 0:00:31]} 37. bxa5+ {[%emt 0:00:16]} Kxa5 {[%emt 0:00:07]} 38. Kd4 {[%emt 0:00:02]} Kb6 {[%emt 0:00:09]} 39. Kd5 {[%emt 0:00:04]} Kc7 {[%emt 0:00:08]} 40. Ke6 {[%emt 0:00:22]} Kc6 {[%emt 0:00:17]} 41. Kf7 {[%emt 0:00:04]} 1-0

[Event "9th Sharjah Cup Women 2018"]
[Site "Sharjah"]
[Date "2018.12.17"]
[Round "6"]
[White "Kiolbasa, Oliwia"]
[Black "Novikova, Margarita"]
[Result "1/2-1/2"]
[ECO "C88"]
[WhiteElo "2244"]
[BlackElo "2017"]
[Annotator "NA"]
[PlyCount "76"]
[EventDate "2018.12.14"]
[EventType "swiss"]
[EventCountry "UAE"]
[SourceTitle "playchess.com"]
[Source "ChessBase"]
[SourceQuality "1"]
[TimeControl "5400+30"]

1. e4 {[%emt 0:00:00]} e5 {[%emt 0:00:00]} 2. Nf3 {[%emt 0:00:00]} Nc6 {[%emt 0:00:00]} 3. Bb5 {[%emt 0:00:00]} a6 {[%emt 0:00:00]} 4. Ba4 {[%emt 0:00:12]} Nf6 {[%emt 0:00:00]} 5. O-O {[%emt 0:00:25]} b5 {[%emt 0:01:03]} 6. Bb3 {[%emt 0:00:08]} Be7 {[%emt 0:00:08]} 7. Re1 {[%emt 0:00:26]} d6 {[%emt 0:00:53]} 8. c3 {[%emt 0:00:16]} Bg4 {[%emt 0:07:44]} 9. d3 {[%emt 0:08:55]} O-O {[%emt 0:09:07]} 10. h3 {[%emt 0:00:10]} Bh5 {[%emt 0:07:11]} 11. Nbd2 {[%emt 0:00:16]} Na5 {[%emt 0:01:05]} 12. Bc2 {[%emt 0:00:16]} c5 {[%emt 0:00:57]} 13. Nf1 {[%emt 0:00:16] LiveBook: 28 Games} Qc7 {[%emt 0:07:16]} 14. g4 {[%emt 0:04:19]} Bg6 {[%emt 0:02:41]} 15. Ng3 {[%emt 0:00:13]} Qd7 {[%emt 0:05:04]} 16. Nh4 {[%emt 0:11:00]} d5 $14 {[%emt 0:04:38]} 17. Ngf5 {[%emt 0:06:11]} dxe4 {[%emt 0:06:24]} 18. dxe4 {[%emt 0:01:35]} Bxf5 {[%emt 0:05:06]} 19. Nxf5 {[%emt 0:00:20]} Qc7 {[%emt 0:10:28]} 20. Nxe7+ {[%emt 0:07:33]} Qxe7 {[%emt 0:00:02]} 21. Qf3 {[%emt 0:00:10]} Ne8 {[%emt 0:04:36]} 22. Rd1 {[%emt 0:05:10]} Nc7 {[%emt 0:07:59]} 23. Qf5 {[%emt 0:05:58]} Rad8 {[%emt 0:01:25]} 24. Bg5 {[%emt 0:02:22]} f6 {[%emt 0:00:56]} 25. Be3 {[%emt 0:00:15]} Nb7 {[%emt 0:03:34]} 26. a4 {[%emt 0:01:58]} Rxd1+ {[%emt 0:01:16]} 27. Rxd1 {[%emt 0:03:17]} Rd8 {[%emt 0:01:28]} 28. axb5 {[%emt 0:03:40]} axb5 {[%emt 0:05:20]} 29. Rxd8+ {[%emt 0:02:12]} Qxd8 {[%emt 0:00:38]} 30. g5 {[%emt 0:00:46]} Kh8 {[%emt 0:05:45]} 31. gxf6 {[%emt 0:02:46]} gxf6 {[%emt 0:00:09]} 32. Kh2 {[%emt 0:00:10]} Ne8 {[%emt 0:01:13]} 33. Bh6 {[%emt 0:01:50]} Nbd6 {[%emt 0:01:00]} 34. Qe6 {[%emt 0:01:04]} Nc7 {[%emt 0:00:45]} 35. Qg4 {[%emt 0:01:55]} Nce8 {[%emt 0:00:45]} 36. Be3 {[%emt 0:01:12]} c4 {[%emt 0:00:14]} 37. f4 {[%emt 0:19:12]} Qe7 {[%emt 0:00:01]} 38. fxe5 {[%emt 0:01:42]} fxe5 {[%emt 0:00:15]} 1/2-1/2